[Event "*** Titled Tuesday Blitz"]
[Site "Chess.com"]
[Date "2020.10.27"]
[Round "11"]
[White "BilodeauA"]
[Black "TigrVShlyape"]
[Result "0-1"]
[WhiteElo "2906"]
[BlackElo "2904"]
[TimeControl "180+1"]
[EndTime "12:06:32 PDT"]
[Termination "TigrVShlyape won on time"]

1. e4 {[%clk 0:03:00.9]} 1... c5 {[%clk 0:02:57.8]} 2. Nf3 {[%clk 0:03:00.9]}
2... e6 {[%clk 0:02:56.4]} 3. d4 {[%clk 0:03:01.4]} 3... cxd4 {[%clk 0:02:56.6]}
4. Nxd4 {[%clk 0:03:02.1]} 4... a6 {[%clk 0:02:57]} 5. Nc3 {[%clk 0:03:02.6]}
5... b5 {[%clk 0:02:56.6]} 6. Bd3 {[%clk 0:03:03.2]} 6... Qb6 {[%clk 0:02:56.5]}
7. Nf3 {[%clk 0:03:03]} 7... Qc7 {[%clk 0:02:56.3]} 8. O-O {[%clk 0:03:02.8]}
8... Bb7 {[%clk 0:02:56.5]} 9. Re1 {[%clk 0:03:03.2]} 9... Be7 {[%clk
0:02:56.7]} 10. Bd2 {[%clk 0:03:02.6]} 10... Nf6 {[%clk 0:02:50.6]} 11. e5
{[%clk 0:03:01.7]} 11... Nd5 {[%clk 0:02:49.7]} 12. Ne4 {[%clk 0:02:57.7]} 12...
Nc6 {[%clk 0:02:48.7]} 13. c4 {[%clk 0:02:48.9]} 13... bxc4 {[%clk 0:02:42.5]}
14. Bxc4 {[%clk 0:02:49.8]} 14... Nxe5 {[%clk 0:02:38.4]} 15. Nxe5 {[%clk
0:02:44.6]} 15... Qxe5 {[%clk 0:02:37.5]} 16. Nc3 {[%clk 0:02:25.2]} 16... Qd4
{[%clk 0:02:28.2]} 17. Qb3 {[%clk 0:01:54.6]} 17... Nb6 {[%clk 0:02:12.4]} 18.
Bf1 {[%clk 0:01:23.8]} 18... Qb4 {[%clk 0:02:10.6]} 19. Qc2 {[%clk 0:01:21.7]}
19... Qd6 {[%clk 0:01:45.2]} 20. Rad1 {[%clk 0:01:21.3]} 20... Qc6 {[%clk
0:01:44.6]} 21. Qd3 {[%clk 0:01:18.7]} 21... O-O {[%clk 0:01:41.5]} 22. Qg3
{[%clk 0:01:18.9]} 22... f5 {[%clk 0:01:39.8]} 23. Bf4 {[%clk 0:01:16.7]} 23...
Rac8 {[%clk 0:01:14.9]} 24. Bd6 {[%clk 0:01:15.7]} 24... Bxd6 {[%clk 0:01:12.7]}
25. Rxd6 {[%clk 0:01:16.6]} 25... Qc5 {[%clk 0:01:08.2]} 26. Red1 {[%clk
0:01:15.2]} 26... Bc6 {[%clk 0:01:06.5]} 27. R6d4 {[%clk 0:01:04.8]} 27... a5
{[%clk 0:01:04.9]} 28. Rh4 {[%clk 0:01:02.8]} 28... Rf7 {[%clk 0:01:02.2]} 29.
Qh3 {[%clk 0:01:01.7]} 29... g6 {[%clk 0:01:01.6]} 30. Qg3 {[%clk 0:01:01.2]}
30... Rcf8 {[%clk 0:00:48.8]} 31. Qg5 {[%clk 0:00:59.8]} 31... Qe7 {[%clk
0:00:47.1]} 32. Qh6 {[%clk 0:00:56.9]} 32... g5 {[%clk 0:00:44.8]} 33. Rhd4
{[%clk 0:00:54.9]} 33... Qf6 {[%clk 0:00:41.1]} 34. Qh5 {[%clk 0:00:55.4]} 34...
g4 {[%clk 0:00:40.1]} 35. Ne2 {[%clk 0:00:46.8]} 35... Rg7 {[%clk 0:00:39]} 36.
Nf4 {[%clk 0:00:32.1]} 36... Nd5 {[%clk 0:00:38.5]} 37. Nxd5 {[%clk 0:00:18.9]}
37... Bxd5 {[%clk 0:00:38.6]} 38. Bc4 {[%clk 0:00:18]} 38... Bc6 {[%clk
0:00:31.9]} 39. Rd6 {[%clk 0:00:13.5]} 39... Rg6 {[%clk 0:00:30.1]} 40. h4
{[%clk 0:00:08.2]} 40... gxh3 {[%clk 0:00:29.6]} 41. Qxh3 {[%clk 0:00:05.2]}
41... Bxg2 {[%clk 0:00:27.3]} 42. Qb3 {[%clk 0:00:02.7]} 42... Bf3+ {[%clk
0:00:25.8]} 43. Kf1 {[%clk 0:00:03.1]} 43... Bxd1 {[%clk 0:00:25.7]} 44. Qxd1
{[%clk 0:00:03]} 44... Qg5 {[%clk 0:00:23.5]} 45. Rxd7 {[%clk 0:00:02.7]} 45...
Qg1+ {[%clk 0:00:22.6]} 46. Ke2 {[%clk 0:00:03.3]} 46... Qxd1+ {[%clk
0:00:19.4]} 47. Kxd1 {[%clk 0:00:04.2]} 47... Rf7 {[%clk 0:00:18.9]} 48. Rd8+
{[%clk 0:00:03.9]} 48... Kg7 {[%clk 0:00:18.9]} 49. Ke2 {[%clk 0:00:04.5]} 49...
h5 {[%clk 0:00:18.7]} 50. Rd6 {[%clk 0:00:05.1]} 50... h4 {[%clk 0:00:18.5]} 51.
Kf3 {[%clk 0:00:04.6]} 51... h3 {[%clk 0:00:18.6]} 52. Rd1 {[%clk 0:00:05]}
52... Kf6 {[%clk 0:00:16.7]} 53. Rh1 {[%clk 0:00:04.9]} 53... Rh7 {[%clk
0:00:16.8]} 54. a3 {[%clk 0:00:04.7]} 54... h2 {[%clk 0:00:16.6]} 0-1

[Event "*** Titled Tuesday Blitz"]
[Site "Chess.com"]
[Date "2020.10.27"]
[Round "11"]
[White "DenLaz"]
[Black "Zhigalko_Sergei"]
[Result "1/2-1/2"]
[WhiteElo "2792"]
[BlackElo "2911"]
[TimeControl "180+1"]
[EndTime "12:06:34 PDT"]
[Termination "Game drawn by repetition"]

1. d4 {[%clk 0:03:00]} 1... Nf6 {[%clk 0:03:00.1]} 2. c4 {[%clk 0:02:59.4]} 2...
e6 {[%clk 0:03:00.4]} 3. Nf3 {[%clk 0:02:59.6]} 3... b6 {[%clk 0:03:00.6]} 4. g3
{[%clk 0:02:59.9]} 4... Ba6 {[%clk 0:03:00.9]} 5. b3 {[%clk 0:03:00.3]} 5...
Bb4+ {[%clk 0:03:00.5]} 6. Bd2 {[%clk 0:03:00.7]} 6... Be7 {[%clk 0:03:01.1]} 7.
Bg2 {[%clk 0:03:01.2]} 7... c6 {[%clk 0:03:01.4]} 8. Bc3 {[%clk 0:03:01.5]} 8...
d5 {[%clk 0:03:02.3]} 9. Nbd2 {[%clk 0:03:01.3]} 9... Nbd7 {[%clk 0:03:02.5]}
10. O-O {[%clk 0:03:00.4]} 10... O-O {[%clk 0:03:02.7]} 11. Re1 {[%clk
0:03:00.1]} 11... c5 {[%clk 0:03:00]} 12. e4 {[%clk 0:02:52.8]} 12... Nxe4
{[%clk 0:02:58.9]} 13. Nxe4 {[%clk 0:02:53.7]} 13... dxe4 {[%clk 0:02:59.8]} 14.
Rxe4 {[%clk 0:02:53.9]} 14... Bb7 {[%clk 0:02:58.3]} 15. Re1 {[%clk 0:02:44.5]}
15... Bf6 {[%clk 0:02:53.1]} 16. Qd2 {[%clk 0:02:36.9]} 16... Qc7 {[%clk
0:02:48.6]} 17. dxc5 {[%clk 0:02:27.2]} 17... Bxc3 {[%clk 0:02:42.1]} 18. Qxc3
{[%clk 0:02:28.1]} 18... Nxc5 {[%clk 0:02:40.7]} 19. Rad1 {[%clk 0:02:18.2]}
19... Rad8 {[%clk 0:02:39.2]} 20. Ne5 {[%clk 0:02:16.1]} 20... Bxg2 {[%clk
0:02:24.4]} 21. Kxg2 {[%clk 0:02:10.9]} 21... f6 {[%clk 0:02:24.2]} 22. Nf3
{[%clk 0:01:50.8]} 22... e5 {[%clk 0:02:18.2]} 23. Qe3 {[%clk 0:01:31.9]} 23...
Qc6 {[%clk 0:02:13.6]} 24. Kg1 {[%clk 0:01:22.4]} 24... a5 {[%clk 0:02:03.1]}
25. Nh4 {[%clk 0:01:19.6]} 25... Qe6 {[%clk 0:01:41.1]} 26. a3 {[%clk
0:01:14.2]} 26... Qg4 {[%clk 0:01:22.6]} 27. f3 {[%clk 0:00:55.8]} 27... Qe6
{[%clk 0:01:08.7]} 28. b4 {[%clk 0:00:54.3]} 28... axb4 {[%clk 0:00:56.4]} 29.
axb4 {[%clk 0:00:55.2]} 29... Na6 {[%clk 0:00:57]} 30. Qc3 {[%clk 0:00:38.3]}
30... Rc8 {[%clk 0:00:52.7]} 31. Rc1 {[%clk 0:00:36.5]} 31... Rfd8 {[%clk
0:00:44.6]} 32. Ng2 {[%clk 0:00:33.7]} 32... Qe7 {[%clk 0:00:30.6]} 33. c5
{[%clk 0:00:26.4]} 33... Qe6 {[%clk 0:00:26.1]} 34. c6 {[%clk 0:00:22.9]} 34...
b5 {[%clk 0:00:25]} 35. Nf4 {[%clk 0:00:14.8]} 35... Qf7 {[%clk 0:00:18.7]} 36.
Ng2 {[%clk 0:00:10.7]} 36... Rd6 {[%clk 0:00:18.1]} 37. Ne3 {[%clk 0:00:07.8]}
37... Qe6 {[%clk 0:00:13.2]} 38. Red1 {[%clk 0:00:04.2]} 38... Rdxc6 {[%clk
0:00:08.7]} 39. Qb2 {[%clk 0:00:02.8]} 39... Rxc1 {[%clk 0:00:05.2]} 40. Rxc1
{[%clk 0:00:03.7]} 40... Rxc1+ {[%clk 0:00:05.2]} 41. Qxc1 {[%clk 0:00:04.6]}
41... h6 {[%clk 0:00:03.4]} 42. Qc3 {[%clk 0:00:03.8]} 42... Qd6 {[%clk
0:00:03.2]} 43. Kg2 {[%clk 0:00:03.1]} 43... Nxb4 {[%clk 0:00:03]} 44. Nf5
{[%clk 0:00:03]} 44... Qf8 {[%clk 0:00:02.8]} 45. Qb3+ {[%clk 0:00:03.2]} 45...
Kh8 {[%clk 0:00:03.1]} 46. Nh4 {[%clk 0:00:03.5]} 46... Kh7 {[%clk 0:00:02.7]}
47. Qb1+ {[%clk 0:00:03.5]} 47... Kg8 {[%clk 0:00:03.1]} 48. Qb3+ {[%clk
0:00:03.6]} 48... Kh7 {[%clk 0:00:03]} 49. Qb1+ {[%clk 0:00:03.9]} 49... Kg8
{[%clk 0:00:03.6]} 50. Qb3+ {[%clk 0:00:03.8]} 50... Kh7 {[%clk 0:00:04.1]}
1/2-1/2

[Event "*** Titled Tuesday Blitz"]
[Site "Chess.com"]
[Date "2020.10.27"]
[Round "11"]
[White "WhiteKnight2612"]
[Black "Shahinyan_ChessMood"]
[Result "1-0"]
[WhiteElo "2601"]
[BlackElo "2740"]
[TimeControl "180+1"]
[EndTime "12:06:37 PDT"]
[Termination "WhiteKnight2612 won by resignation"]

1. Nf3 {[%clk 0:03:00.9]} 1... Nf6 {[%clk 0:02:55.9]} 2. g3 {[%clk 0:03:01.8]}
2... c5 {[%clk 0:02:56]} 3. Bg2 {[%clk 0:02:49.2]} 3... g6 {[%clk 0:02:56.4]} 4.
O-O {[%clk 0:02:50.1]} 4... Bg7 {[%clk 0:02:56.9]} 5. d3 {[%clk 0:02:51]} 5...
O-O {[%clk 0:02:56.6]} 6. c4 {[%clk 0:02:51.9]} 6... Nc6 {[%clk 0:02:54.3]} 7.
Nc3 {[%clk 0:02:51.7]} 7... d5 {[%clk 0:02:54.2]} 8. cxd5 {[%clk 0:02:51]} 8...
Nxd5 {[%clk 0:02:55.1]} 9. Bd2 {[%clk 0:02:51.9]} 9... e5 {[%clk 0:02:49.1]} 10.
Rb1 {[%clk 0:02:50.6]} 10... Re8 {[%clk 0:02:34]} 11. a3 {[%clk 0:02:49.1]}
11... a5 {[%clk 0:02:24.4]} 12. Nxd5 {[%clk 0:02:47.5]} 12... Qxd5 {[%clk
0:02:25.3]} 13. Bc3 {[%clk 0:02:47.6]} 13... Qd6 {[%clk 0:02:22.9]} 14. Nd2
{[%clk 0:02:40.3]} 14... a4 {[%clk 0:02:08.3]} 15. Nc4 {[%clk 0:02:32.9]} 15...
Qc7 {[%clk 0:02:08.2]} 16. Ne3 {[%clk 0:02:33]} 16... Be6 {[%clk 0:02:03.1]} 17.
Nd5 {[%clk 0:02:32.8]} 17... Qd8 {[%clk 0:02:03.7]} 18. e4 {[%clk 0:02:33.1]}
18... Ne7 {[%clk 0:01:57.3]} 19. Ne3 {[%clk 0:02:28.3]} 19... Bb3 {[%clk
0:01:55.9]} 20. Qe2 {[%clk 0:02:28.3]} 20... Nc6 {[%clk 0:01:56.4]} 21. Nd5
{[%clk 0:02:25.9]} 21... Nd4 {[%clk 0:01:52.1]} 22. Qd2 {[%clk 0:02:21.3]} 22...
b5 {[%clk 0:01:48]} 23. Bxd4 {[%clk 0:02:18]} 23... exd4 {[%clk 0:01:48.9]} 24.
Rbc1 {[%clk 0:02:15.9]} 24... Rc8 {[%clk 0:01:49.4]} 25. Bh3 {[%clk 0:02:07]}
25... Rc6 {[%clk 0:01:46.3]} 26. Nb4 {[%clk 0:02:07.7]} 26... cxb4 {[%clk
0:01:28.5]} 27. Rxc6 {[%clk 0:02:03.4]} 27... bxa3 {[%clk 0:01:29.4]} 28. bxa3
{[%clk 0:02:03.9]} 28... Bf8 {[%clk 0:01:29.4]} 29. Qb2 {[%clk 0:01:57.9]} 29...
Qe7 {[%clk 0:01:28.1]} 30. Ra1 {[%clk 0:01:55.9]} 30... Rd8 {[%clk 0:01:26.7]}
31. Qd2 {[%clk 0:01:54.5]} 31... Qb7 {[%clk 0:01:19.8]} 32. Rcc1 {[%clk
0:01:51.1]} 32... b4 {[%clk 0:01:18.4]} 33. axb4 {[%clk 0:01:50.4]} 33... Bxb4
{[%clk 0:01:19.3]} 34. Qg5 {[%clk 0:01:49.5]} 34... Rb8 {[%clk 0:01:10.3]} 35.
Rcb1 {[%clk 0:01:37.4]} 35... Qc7 {[%clk 0:00:47.5]} 36. Bf1 {[%clk 0:01:11.8]}
36... Bc3 {[%clk 0:00:42.6]} 37. Rc1 {[%clk 0:01:07.8]} 37... Qd6 {[%clk
0:00:38.1]} 38. Rab1 {[%clk 0:01:04.8]} 38... a3 {[%clk 0:00:36.8]} 39. e5
{[%clk 0:00:39.5]} 39... Qe6 {[%clk 0:00:36.5]} 40. Bh3 {[%clk 0:00:23.6]} 40...
Qxh3 {[%clk 0:00:26.7]} 41. Rxb3 {[%clk 0:00:21.5]} 41... Rxb3 {[%clk
0:00:27.6]} 42. Qd8+ {[%clk 0:00:21]} 42... Kg7 {[%clk 0:00:28.2]} 43. Qf6+
{[%clk 0:00:21.1]} 43... Kh6 {[%clk 0:00:28.7]} 44. Qf4+ {[%clk 0:00:20.9]}
44... Kh5 {[%clk 0:00:23.2]} 45. Qxf7 {[%clk 0:00:17.7]} 45... Rb6 {[%clk
0:00:12.9]} 46. Qxh7+ {[%clk 0:00:17.1]} 46... Kg4 {[%clk 0:00:13.2]} 47. Qd7+
{[%clk 0:00:17.9]} 47... Kf3 {[%clk 0:00:13.5]} 48. Qxh3 {[%clk 0:00:18.7]}
48... a2 {[%clk 0:00:13.3]} 49. Qg2+ {[%clk 0:00:19.2]} 49... Ke2 {[%clk
0:00:13.8]} 50. Qe4+ {[%clk 0:00:19.5]} 50... Kd2 {[%clk 0:00:13]} 51. Qe1+
{[%clk 0:00:19.3]} 51... Kxd3 {[%clk 0:00:13.3]} 52. Qd1+ {[%clk 0:00:19.7]}
52... Ke4 {[%clk 0:00:12.2]} 53. Qe2+ {[%clk 0:00:19.6]} 53... Kd5 {[%clk
0:00:12]} 54. Qxa2+ {[%clk 0:00:20.5]} 54... Kxe5 {[%clk 0:00:10.8]} 55. Rxc3
{[%clk 0:00:20.6]} 55... dxc3 {[%clk 0:00:08.6]} 56. Qa5+ {[%clk 0:00:20.8]}
56... Kd4 {[%clk 0:00:09.5]} 57. Qxb6+ {[%clk 0:00:20.7]} 57... Kd3 {[%clk
0:00:10.4]} 1-0

[Event "*** Titled Tuesday Blitz"]
[Site "Chess.com"]
[Date "2020.10.27"]
[Round "11"]
[White "vugarrasulov"]
[Black "GOGIEFF"]
[Result "0-1"]
[WhiteElo "2873"]
[BlackElo "2910"]
[TimeControl "180+1"]
[EndTime "12:06:38 PDT"]
[Termination "GOGIEFF won on time"]

1. c4 {[%clk 0:03:00.9]} 1... Nf6 {[%clk 0:02:58.9]} 2. Nc3 {[%clk 0:03:01.3]}
2... g6 {[%clk 0:02:59.4]} 3. g3 {[%clk 0:03:01.7]} 3... Bg7 {[%clk 0:02:59.2]}
4. Bg2 {[%clk 0:03:02.4]} 4... O-O {[%clk 0:02:59.8]} 5. Nf3 {[%clk 0:03:03]}
5... Nc6 {[%clk 0:03:00.2]} 6. O-O {[%clk 0:03:03.9]} 6... a6 {[%clk 0:03:00.8]}
7. d3 {[%clk 0:03:03.8]} 7... Rb8 {[%clk 0:03:01.1]} 8. e4 {[%clk 0:02:54.2]}
8... b5 {[%clk 0:03:00.1]} 9. cxb5 {[%clk 0:02:53.4]} 9... axb5 {[%clk 0:03:01]}
10. e5 {[%clk 0:02:52.3]} 10... Ne8 {[%clk 0:02:56.6]} 11. Re1 {[%clk
0:02:51.1]} 11... b4 {[%clk 0:02:54.9]} 12. Nd5 {[%clk 0:02:49.4]} 12... d6
{[%clk 0:02:46.6]} 13. d4 {[%clk 0:02:47.8]} 13... Bg4 {[%clk 0:02:39.4]} 14.
Bg5 {[%clk 0:02:40.7]} 14... Qd7 {[%clk 0:02:07.2]} 15. Rc1 {[%clk 0:02:35.6]}
15... h6 {[%clk 0:01:51.1]} 16. exd6 {[%clk 0:02:21.9]} 16... exd6 {[%clk
0:01:46.6]} 17. Ne7+ {[%clk 0:02:08.7]} 17... Nxe7 {[%clk 0:01:46.4]} 18. Bxe7
{[%clk 0:02:09.6]} 18... Nf6 {[%clk 0:01:41.2]} 19. Bxf8 {[%clk 0:02:09.8]}
19... Kxf8 {[%clk 0:01:42.1]} 20. Qc2 {[%clk 0:02:06]} 20... Rc8 {[%clk
0:01:32.7]} 21. Qc4 {[%clk 0:02:05]} 21... Qa4 {[%clk 0:01:11.7]} 22. Nh4 {[%clk
0:01:48.9]} 22... g5 {[%clk 0:00:58.1]} 23. Nf3 {[%clk 0:01:46.2]} 23... Qa5
{[%clk 0:00:54]} 24. a3 {[%clk 0:01:28]} 24... bxa3 {[%clk 0:00:51.3]} 25. bxa3
{[%clk 0:01:28.9]} 25... Qxa3 {[%clk 0:00:51.4]} 26. Nd2 {[%clk 0:01:27.2]}
26... Qa5 {[%clk 0:00:49.5]} 27. Ne4 {[%clk 0:01:19.2]} 27... Be6 {[%clk
0:00:43.2]} 28. Qc2 {[%clk 0:01:11.1]} 28... Nxe4 {[%clk 0:00:35.9]} 29. Qxe4
{[%clk 0:01:12]} 29... d5 {[%clk 0:00:33]} 30. Qd3 {[%clk 0:01:05.6]} 30... Qb4
{[%clk 0:00:31.4]} 31. Red1 {[%clk 0:01:04.3]} 31... c6 {[%clk 0:00:31.3]} 32.
Qc3 {[%clk 0:00:55.8]} 32... Qxc3 {[%clk 0:00:30.3]} 33. Rxc3 {[%clk 0:00:56.7]}
33... Ke7 {[%clk 0:00:30.9]} 34. Ra3 {[%clk 0:00:53.1]} 34... Kd6 {[%clk
0:00:30.5]} 35. Ra6 {[%clk 0:00:48.2]} 35... Bd7 {[%clk 0:00:29.8]} 36. Bf1
{[%clk 0:00:38.4]} 36... Rb8 {[%clk 0:00:29.9]} 37. Ra4 {[%clk 0:00:37.8]} 37...
g4 {[%clk 0:00:29.4]} 38. Bd3 {[%clk 0:00:36.9]} 38... h5 {[%clk 0:00:29.6]} 39.
Kg2 {[%clk 0:00:29]} 39... Rb2 {[%clk 0:00:29.5]} 40. Bh7 {[%clk 0:00:24.5]}
40... f5 {[%clk 0:00:27.2]} 41. Ra7 {[%clk 0:00:20.4]} 41... Rb4 {[%clk
0:00:25.9]} 42. Re1 {[%clk 0:00:10.5]} 42... Bxd4 {[%clk 0:00:24.9]} 43. Ra2
{[%clk 0:00:10.2]} 43... Bb6 {[%clk 0:00:21.8]} 44. Bg6 {[%clk 0:00:10.4]} 44...
f4 {[%clk 0:00:20.3]} 45. gxf4 {[%clk 0:00:08.5]} 45... Rxf4 {[%clk 0:00:20.3]}
46. Bxh5 {[%clk 0:00:08.7]} 46... Bf5 {[%clk 0:00:20.8]} 47. Be8 {[%clk
0:00:06.4]} 47... Be4+ {[%clk 0:00:20.6]} 48. Kg1 {[%clk 0:00:06.7]} 48... Rf8
{[%clk 0:00:16.8]} 49. Bh5 {[%clk 0:00:06.1]} 49... Rg8 {[%clk 0:00:16.2]} 50.
Rc1 {[%clk 0:00:03.6]} 50... g3 {[%clk 0:00:14.7]} 51. hxg3 {[%clk 0:00:03.4]}
51... Rxg3+ {[%clk 0:00:15.3]} 52. Kh2 {[%clk 0:00:03.7]} 52... Rg5 {[%clk
0:00:14.9]} 53. Be8 {[%clk 0:00:03.9]} 53... c5 {[%clk 0:00:13.2]} 54. Ra6
{[%clk 0:00:03.7]} 54... Kc7 {[%clk 0:00:13.1]} 55. Rb1 {[%clk 0:00:04.1]} 55...
Bxb1 {[%clk 0:00:12.7]} 0-1

[Event "*** Titled Tuesday Blitz"]
[Site "Chess.com"]
[Date "2020.10.27"]
[Round "11"]
[White "Fischerev7"]
[Black "keepitcoming"]
[Result "1-0"]
[WhiteElo "2438"]
[BlackElo "2538"]
[TimeControl "180+1"]
[EndTime "12:06:41 PDT"]
[Termination "Fischerev7 won by checkmate"]

1. e4 {[%clk 0:02:53]} 1... c6 {[%clk 0:02:59.8]} 2. d4 {[%clk 0:02:48.3]} 2...
d5 {[%clk 0:02:56.2]} 3. Nc3 {[%clk 0:02:48.2]} 3... dxe4 {[%clk 0:02:55.9]} 4.
Nxe4 {[%clk 0:02:48]} 4... Nf6 {[%clk 0:02:56.8]} 5. Nxf6+ {[%clk 0:02:41.6]}
5... exf6 {[%clk 0:02:57.7]} 6. Be3 {[%clk 0:02:35.6]} 6... Bd6 {[%clk
0:02:56.8]} 7. Bd3 {[%clk 0:02:35.3]} 7... O-O {[%clk 0:02:56.4]} 8. c3 {[%clk
0:02:35.7]} 8... Re8 {[%clk 0:02:55.4]} 9. Qc2 {[%clk 0:02:35.8]} 9... h5 {[%clk
0:02:46.3]} 10. Ne2 {[%clk 0:02:34.9]} 10... Nd7 {[%clk 0:02:43.3]} 11. O-O
{[%clk 0:02:31.2]} 11... Nf8 {[%clk 0:02:42]} 12. Rad1 {[%clk 0:02:24.5]} 12...
Be6 {[%clk 0:02:41.5]} 13. c4 {[%clk 0:02:15.3]} 13... Rc8 {[%clk 0:02:39.5]}
14. Rfe1 {[%clk 0:02:12.4]} 14... Qd7 {[%clk 0:02:33.5]} 15. Nf4 {[%clk
0:01:57.6]} 15... Bg4 {[%clk 0:02:22.4]} 16. Be2 {[%clk 0:01:22.2]} 16... Bf5
{[%clk 0:02:12.4]} 17. Bd3 {[%clk 0:01:07.2]} 17... Bg4 {[%clk 0:02:12.5]} 18.
Be2 {[%clk 0:01:07.1]} 18... Bxf4 {[%clk 0:01:44.7]} 19. Bxf4 {[%clk 0:01:02.8]}
19... Ng6 {[%clk 0:01:45.6]} 20. Be3 {[%clk 0:00:53.5]} 20... h4 {[%clk
0:01:36.1]} 21. h3 {[%clk 0:00:49.5]} 21... Bxh3 {[%clk 0:01:28.4]} 22. gxh3
{[%clk 0:00:43.9]} 22... Qxh3 {[%clk 0:01:29.3]} 23. Bf1 {[%clk 0:00:44.4]}
23... Qg4+ {[%clk 0:01:26.5]} 24. Kh2 {[%clk 0:00:31.9]} 24... f5 {[%clk
0:01:14.8]} 25. Qe2 {[%clk 0:00:19.7]} 25... Qe4 {[%clk 0:01:04.3]} 26. Bg2
{[%clk 0:00:17.7]} 26... Qe6 {[%clk 0:01:04.2]} 27. Qf3 {[%clk 0:00:17.6]} 27...
Qf6 {[%clk 0:00:59.7]} 28. Bh3 {[%clk 0:00:13.9]} 28... Ne7 {[%clk 0:00:51.8]}
29. b3 {[%clk 0:00:12.1]} 29... g6 {[%clk 0:00:52]} 30. Rg1 {[%clk 0:00:11.4]}
30... Qe6 {[%clk 0:00:43.9]} 31. Bf4 {[%clk 0:00:10.8]} 31... Rcd8 {[%clk
0:00:41.2]} 32. Be5 {[%clk 0:00:09.5]} 32... Kh7 {[%clk 0:00:32.9]} 33. Qf4
{[%clk 0:00:09.1]} 33... f6 {[%clk 0:00:26.9]} 34. Qxh4+ {[%clk 0:00:08.3]}
34... Kg7 {[%clk 0:00:26.1]} 35. Bf4 {[%clk 0:00:08.2]} 35... Rh8 {[%clk
0:00:25.6]} 36. Qg3 {[%clk 0:00:07.5]} 36... Qe4 {[%clk 0:00:22.4]} 37. Rde1
{[%clk 0:00:07.1]} 37... Rxd4 {[%clk 0:00:12.1]} 38. Rxe4 {[%clk 0:00:07]} 38...
Rxe4 {[%clk 0:00:13]} 39. Rd1 {[%clk 0:00:05]} 39... Kf7 {[%clk 0:00:12.3]} 40.
Rd7 {[%clk 0:00:04.5]} 40... Re8 {[%clk 0:00:12]} 41. Bg2 {[%clk 0:00:04.3]}
41... Re6 {[%clk 0:00:12.9]} 42. b4 {[%clk 0:00:03.3]} 42... g5 {[%clk
0:00:13.8]} 43. Be3 {[%clk 0:00:02.2]} 43... Kg6 {[%clk 0:00:14.7]} 44. c5
{[%clk 0:00:01.8]} 44... f4 {[%clk 0:00:15.6]} 45. Bxf4 {[%clk 0:00:01.8]} 45...
Kf5 {[%clk 0:00:16.5]} 46. Be3 {[%clk 0:00:02.3]} 46... g4 {[%clk 0:00:17.1]}
47. b5 {[%clk 0:00:03.2]} 47... Kg6 {[%clk 0:00:17.7]} 48. Qf4 {[%clk
0:00:03.7]} 48... Rxe3 {[%clk 0:00:18.6]} 49. Qxe3 {[%clk 0:00:03.8]} 49... Rh8+
{[%clk 0:00:18.9]} 50. Kg1 {[%clk 0:00:03]} 50... Nf5 {[%clk 0:00:19.2]} 51. Qd3
{[%clk 0:00:03.5]} 51... Rh5 {[%clk 0:00:19.4]} 52. Be4 {[%clk 0:00:03.9]} 52...
Rg5 {[%clk 0:00:20.3]} 53. Bxf5+ {[%clk 0:00:04.8]} 53... Rxf5 {[%clk 0:00:20]}
54. Qxf5+ {[%clk 0:00:05.7]} 54... Kxf5 {[%clk 0:00:20.2]} 55. bxc6 {[%clk
0:00:06.6]} 55... Kf4 {[%clk 0:00:21.1]} 56. Rd6 {[%clk 0:00:07.2]} 56... Kf3
{[%clk 0:00:22]} 57. cxb7 {[%clk 0:00:08.1]} 57... g3 {[%clk 0:00:21]} 58. b8=Q
{[%clk 0:00:09]} 58... gxf2+ {[%clk 0:00:19.7]} 59. Kf1 {[%clk 0:00:09.4]} 59...
f5 {[%clk 0:00:20.2]} 60. Qb3+ {[%clk 0:00:09.9]} 60... Kg4 {[%clk 0:00:20.2]}
61. Rd4+ {[%clk 0:00:10.4]} 61... f4 {[%clk 0:00:21.1]} 62. Qe3 {[%clk
0:00:10.5]} 62... Kg5 {[%clk 0:00:21.9]} 63. Qxf4+ {[%clk 0:00:10.8]} 63... Kg6
{[%clk 0:00:21.9]} 64. Rd6+ {[%clk 0:00:11.5]} 64... Kg7 {[%clk 0:00:22.8]} 65.
Qg5+ {[%clk 0:00:11.6]} 65... Kh7 {[%clk 0:00:22.4]} 66. Rd7+ {[%clk 0:00:11.7]}
66... Kh8 {[%clk 0:00:23.3]} 67. Qg7# {[%clk 0:00:11.9]} 1-0